{"text_format":"1","workbook":"xlsx","n_sheets":30,"sheets":["Maj 2014","Juni 2014","Juli 2014","August 2014","September 2014","Oktober 2014","November 2014","December_2014","Januar_2015","Februar_2015","Marts_2015","April_2015","Maj_2015","Juni_2015","Juli_2015","August_2015","September_2015","Oktober_2015","November_2015","December_2015","Januar 2016","Februar 2016","Marts 2016","April 2016","Maj 2016","Juni 2016","Juli 2016","August 2016","Ark8","Setup"],"not_rendered":{"charts":0,"images":0,"macros":1,"external_links":0,"defined_names":1,"comments":0,"pivot_tables":0},"unopened":[],"bounds":{"document_bytes":16777216,"sheet_cells":100000,"rows_first":2000,"rows_last":500,"rows_between":2000,"halvings":0,"cell_chars":16384,"cell_head_chars":4096},"cells_cut":0,"cells_raw":0,"read":"whole","date_system":"1900"}

{"sheet":"Maj 2014","index":0,"n_rows":26,"n_cols":25,"rows_kept":26,"cut":false,"hidden":false,"merged":[]}
["År",2014]
["Måned","Maj"]
[]
["Uge",18,null,19,null,null,null,null,20,null,null,null,null,21,null,null,null,null,22,null,null,null,null,"Feriedage denne måned","Feriedage ferieåret 1/5-14-1/5-15"]
["Dag","Torsdag","Fredag","Mandag","Tirsdag","Onsdag","Torsdag","Fredag","Mandag","Tirsdag","Onsdag","Torsdag","Fredag","Mandag","Tirsdag","Onsdag","Torsdag","Fredag","Mandag","Tirsdag","Onsdag","Torsdag","Fredag"]
["Dato",1,2,5,6,7,8,9,12,13,14,15,16,19,20,21,22,23,26,27,28,29,30]
["Medarbejdere"]
["nr.1","1. maj",null,null,null,null,null,null,null,null,null,null,"Bededag",null,null,null,null,null,null,null,null,"Kristi Himmelfartsdag","F",1,1]
["nr. 2","1. maj","F",null,null,null,null,null,null,null,null,null,"Bededag",null,null,null,null,null,null,null,null,"Kristi Himmelfartsdag",null,1,1]
["nr. 3","1. maj",null,null,null,null,null,null,null,null,null,null,"Bededag",null,null,null,null,null,"F","F","F","Kristi Himmelfartsdag","F",4,4]
["nr. 4","1. maj",null,null,null,null,null,null,null,null,null,null,"Bededag",null,null,null,null,null,null,null,null,"Kristi Himmelfartsdag","F",1,1]
[null,"1. maj","1/2 F",null,null,null,null,null,null,null,null,null,"Bededag",null,null,null,null,null,null,null,null,"Kristi Himmelfartsdag","F",1.5,1.5]
[null,"1. maj",null,null,null,null,null,null,null,null,null,null,"Bededag",null,null,null,null,null,null,null,null,"Kristi Himmelfartsdag"]
[null,"1. maj",null,null,null,null,null,null,null,null,null,null,"Bededag",null,null,null,null,null,null,null,null,"Kristi Himmelfartsdag"]
[null,"1. maj","Fri ?",null,null,null,null,null,null,null,null,null,"Bededag",null,null,null,null,null,null,null,null,"Kristi Himmelfartsdag"]
[null,"1. maj",null,null,null,null,null,null,null,null,null,null,"Bededag",null,null,null,null,null,null,null,null,"Kristi Himmelfartsdag","F",1,1]
[null,"1. maj",null,null,null,null,null,null,null,null,null,null,"Bededag",null,null,null,null,null,null,null,null,"Kristi Himmelfartsdag"]
[null,"1. maj",null,null,null,null,null,null,null,null,null,null,"Bededag",null,null,null,null,null,null,null,null,"Kristi Himmelfartsdag"]
[null,"1. maj",null,null,null,null,null,null,null,null,null,null,"Bededag",null,null,null,null,null,null,null,null,"Kristi Himmelfartsdag"]
[null,"1. maj",null,null,null,"F","F","F",null,null,null,null,"Bededag",null,null,null,null,null,null,null,null,"Kristi Himmelfartsdag",null,3,3]
[]
["Ferie","F",null,null,null,"F"]
["Feriefridag","FF",null,null,null,"FF"]
["Helligdag"]
["Sygdom","S",null,null,null,"S"]
["Arb. hjemme"]

{"sheet":"Juni 2014","index":1,"n_rows":25,"n_cols":24,"rows_kept":25,"cut":false,"hidden":false,"merged":[]}
["År",2014]
["Måned","Juni"]
["Uge",23,null,null,null,null,24,null,null,null,null,25,null,null,null,null,26,null,null,null,null,27,"Feriedage denne måned","Feriedage ferieåret 1/5-14-1/5-15"]
["Dag","Mandag","Tirsdag","Onsdag","Torsdag","Fredag","Mandag","Tirsdag","Onsdag","Torsdag","Fredag","Mandag","Tirsdag","Onsdag","Torsdag","Fredag","Mandag","Tirsdag","Onsdag","Torsdag","Fredag","Mandag"]
["Dato",2,3,4,5,6,9,10,11,12,13,16,17,18,19,20,23,24,25,26,27,30]
["Medarbejdere"]
["Line",null,null,null,"Grundlovsdag",null,"2. pinsedag",null,null,null,null,null,null,null,null,null,null,null,null,null,null,null,0,1]
["Claus",null,null,null,"Grundlovsdag",null,"2. pinsedag",null,null,null,null,null,null,null,null,null,null,null,null,null,null,null,0,1]
["Palle",null,null,null,"Grundlovsdag",null,"2. pinsedag",null,null,null,null,null,null,null,null,null,null,null,null,null,null,null,0,4]
["Michael",null,null,null,"Grundlovsdag",null,"2. pinsedag",null,null,null,null,null,null,null,null,null,null,null,null,null,null,null,0,1]
["Morten",null,null,null,"Grundlovsdag",null,"2. pinsedag",null,null,null,null,null,null,null,null,"1/2 F",null,null,null,null,null,null,0.5,2]
["Oliver",null,null,null,"Grundlovsdag",null,"2. pinsedag"]
["Povl",null,null,null,"Grundlovsdag",null,"2. pinsedag"]
["Ken",null,null,null,"Grundlovsdag",null,"2. pinsedag","F","F","F","F","F","F","F","F","F"]
["Jakob",null,null,null,"Grundlovsdag",null,"2. pinsedag",null,null,null,null,null,null,null,null,null,null,null,null,null,null,"F"]
["Jan",null,null,null,"Grundlovsdag",null,"2. pinsedag"]
["Heine",null,null,null,"Grundlovsdag",null,"2. pinsedag"]
["Dorrit",null,null,null,"Grundlovsdag",null,"2. pinsedag"]
["Christian",null,null,null,"Grundlovsdag",null,"2. pinsedag"]
[]
["Ferie","F"]
["Feriefridag","FF"]
["Helligdag"]
["Sygdom","S"]
["Arb. hjemme"]

{"sheet":"Juli 2014","index":2,"n_rows":26,"n_cols":26,"rows_kept":26,"cut":false,"hidden":false,"merged":[]}
["År",2014]
["Måned","Juli"]
[]
["Uge",27,null,null,null,28,null,null,null,null,29,null,null,null,null,30,null,null,null,null,31,null,null,null,"Feriedage denne måned","Feriedage ferieåret 1/5-14-1/5-15"]
["Dag","Tirsdag","Onsdag","Torsdag","Fredag","Mandag","Tirsdag","Onsdag","Torsdag","Fredag","Mandag","Tirsdag","Onsdag","Torsdag","Fredag","Mandag","Tirsdag","Onsdag","Torsdag","Fredag","Mandag","Tirsdag","Onsdag","Torsdag"]
["Dato",1,2,3,4,7,8,9,10,11,14,15,16,17,18,21,22,23,24,25,28,29,30,31]
["Medarbejdere"]
["Line",null,null,null,null,null,null,null,null,null,null,null,null,null,"F","F","F","F","F","F","F","F","F","F",10,11]
["Claus",null,null,null,null,null,null,null,null,null,null,null,null,null,null,"S","S","S","S","S","S","S","S","S",0,1]
["Palle",null,null,null,null,"F","F","F","F","F","F","F","F","F","F","F","F","F","F","F",null,null,null,null,15,19]
["Michael",null,null,null,null,null,null,null,null,null,"F","F","F","F","F","F","F","F","F","F","F","F","F","F",14,15]
["Morten","Orlov","Orlov","Orlov","Orlov","Orlov","Orlov","Orlov","Orlov","Orlov","F","F","F","F","F","F","F","F","F","F",null,null,null,null,10,12]
["Oliver"]
["Povl"]
["Ken",null,null,"F","F","F","F","F",null,null,null,null,null,null,null,"F","F","F","F","F","F","F","F","F"]
["Jakob","F","F","F","F","F","F","F","F","F"]
["Jan"]
["Heine"]
["Dorrit"]
["Christian"]
[]
["Ferie","F"]
["Feriefridag","FF"]
["Helligdag"]
["Sygdom","S"]
["Arb. hjemme"]

{"sheet":"August 2014","index":3,"n_rows":26,"n_cols":24,"rows_kept":26,"cut":false,"hidden":false,"merged":[]}
["År",2014]
["Måned","August"]
[]
["Uge",31,32,null,null,null,null,33,null,null,null,null,34,null,null,null,null,35,null,null,null,null,"Feriedage denne måned","Feriedage ferieåret 1/5-14-1/5-15"]
["Dag","Fredag","Mandag","Tirsdag","Onsdag","Torsdag","Fredag","Mandag","Tirsdag","Onsdag","Torsdag","Fredag","Mandag","Tirsdag","Onsdag","Torsdag","Fredag","Mandag","Tirsdag","Onsdag","Torsdag","Fredag"]
["Dato",1,4,5,6,7,8,11,12,13,14,15,18,19,20,21,22,25,26,27,28,29]
["Medarbejdere"]
["Line","F","F",null,null,null,null,null,null,"Fri ?",null,null,null,null,null,null,null,null,null,null,null,null,2,13]
["Claus","S","S",null,"S","S","S","S","S",null,null,null,null,null,null,null,null,null,null,null,null,null,0,1]
["Palle",null,null,null,null,null,null,null,null,null,null,null,null,null,null,null,null,null,null,null,null,null,0,19]
["Michael","F",null,null,null,null,null,null,null,null,null,null,null,null,null,null,null,null,null,null,null,null,1,16]
["Morten",null,null,null,null,null,null,null,null,null,null,null,"FF",null,null,null,null,null,null,null,null,null,0,12]
["Oliver"]
["Povl"]
["Ken","F"]
["Jakob","Fri ?",null,null,null,null,"Fri ?"]
["Jan"]
["Heine",null,"F","F","F","F","F","F","F","F","F","F"]
["Dorrit"]
["Christian"]
[]
["Ferie","F"]
["Feriefridag","FF"]
["Helligdag"]
["Sygdom","S"]
["Arb. hjemme"]

{"sheet":"September 2014","index":4,"n_rows":26,"n_cols":25,"rows_kept":26,"cut":false,"hidden":false,"merged":[]}
["År",2014]
["Måned","Sep"]
[]
["Uge",36,null,null,null,null,37,null,null,null,null,38,null,null,null,null,39,null,null,null,null,40,null,"Feriedage denne måned","Feriedage ferieåret 1/5-14-1/5-15"]
["Dag","Mandag","Tirsdag","Onsdag","Torsdag","Fredag","Mandag","Tirsdag","Onsdag","Torsdag","Fredag","Mandag","Tirsdag","Onsdag","Torsdag","Fredag","Mandag","Tirsdag","Onsdag","Torsdag","Fredag","Mandag","Tirsdag"]
["Dato",1,2,3,4,5,8,9,10,11,12,15,16,17,18,19,22,23,24,25,26,29,30]
["Medarbejdere"]
["Line",null,null,null,null,null,null,null,null,null,null,null,null,null,null,null,null,null,null,null,null,null,null,0,13]
["Claus",null,null,null,null,null,null,null,null,null,null,null,null,null,null,null,null,null,null,null,null,"F","F",2,3]
["Palle",null,null,null,null,null,null,null,null,null,null,null,null,null,null,null,null,null,null,null,null,null,null,0,19]
["Michael",null,null,null,null,null,null,null,null,null,null,null,null,null,null,null,null,null,null,null,null,null,null,0,16]
["Morten",null,null,null,null,null,null,null,null,null,null,"1/2 F",null,null,null,null,null,null,null,null,null,"F","F"]
["Oliver"]
["Povl"]
["Ken"]
["Jakob"]
["Jan"]
["Heine"]
["Dorrit"]
["Christian",null,null,"F","F","F","F","F","F","F","F","F","F","F","F","F","F","F","F","F","F"]
[]
["Ferie","F"]
["Feriefridag","FF"]
["Helligdag"]
["Sygdom","S"]
["Arb. hjemme"]

{"sheet":"Oktober 2014","index":5,"n_rows":27,"n_cols":26,"rows_kept":27,"cut":false,"hidden":false,"merged":[]}
["År",2014]
["Måned","Oktober"]
[]
["Uge",40,null,null,41,null,null,null,null,42,null,null,null,null,43,null,null,null,null,44,null,null,null,null,"Feriedage denne måned","Feriedage ferieåret 1/5-14-1/5-15"]
["Dag","Onsdag","Torsdag","Fredag","Mandag","Tirsdag","Onsdag","Torsdag","Fredag","Mandag","Tirsdag","Onsdag","Torsdag","Fredag","Mandag","Tirsdag","Onsdag","Torsdag","Fredag","Mandag","Tirsdag","Onsdag","Torsdag","Fredag"]
["Dato",1,2,3,6,7,8,9,10,13,14,15,16,17,20,21,22,23,24,27,28,29,30,31]
["Medarbejder"]
["Line",null,null,null,null,null,null,null,null,null,null,null,null,null,null,null,null,null,null,null,null,null,null,null,0,13]
["Claus","F","F","F","F","F","F","F","F","F","F","F","F","F",null,null,null,null,null,null,null,null,null,null,13,16]
["Palle",null,null,null,null,null,null,null,null,null,null,"F","F",null,null,null,null,null,null,null,null,null,null,null,2,21]
["Michael",null,null,null,null,null,null,null,null,null,null,null,null,null,null,null,null,null,null,null,null,null,null,null,0,16]
["Morten","F","F","F",null,null,null,null,null,null,"S",null,null,null,null,null,null,"Fri ?"]
["Oliver"]
["Povl"]
["Klaus"]
["Ken",null,null,null,null,null,null,null,null,null,null,null,null,null,null,null,"Fri ?"]
["Jakob",null,null,null,null,null,null,null,null,null,null,"Fri ?"]
["Jan"]
["Heine"]
["Dorrit"]
["Christian"]
[]
["Ferie","F"]
["Feriefridag","FF"]
["Helligdag"]
["Sygdom","S"]
["Arb. hjemme"]

{"sheet":"November 2014","index":6,"n_rows":29,"n_cols":23,"rows_kept":29,"cut":false,"hidden":false,"merged":[]}
["År",2014]
["Måned","Nov"]
[]
["Uge",45,null,null,null,null,46,null,null,null,null,47,null,null,null,null,48,null,null,null,null,"Feriedage denne måned","Feriedage ferieåret 1/5-14-1/5-15"]
["Dag","Mandag","Tirsdag","Onsdag","Torsdag","Fredag","Mandag","Tirsdag","Onsdag","Torsdag","Fredag","Mandag","Tirsdag","Onsdag","Torsdag","Fredag","Mandag","Tirsdag","Onsdag","Torsdag","Fredag"]
["Dato",3,4,5,6,7,10,11,12,13,14,17,18,19,20,21,24,25,26,27,28]
["Medarbejdere"]
["Line",null,null,null,null,null,null,null,null,null,null,null,null,null,null,null,null,null,null,null,null,0,13]
["Claus",null,null,null,null,null,null,null,null,null,null,null,null,null,null,null,null,null,null,null,null,0,16]
["Palle",null,null,null,null,null,null,null,null,null,null,null,null,null,null,null,null,null,null,null,null,0,21]
["Michael",null,null,null,null,null,null,null,null,null,null,null,null,null,null,null,null,null,null,null,null,0,16]
["Morten"]
["Oliver"]
["Povl"]
["Klaus"]
["Ken"]
["Jakob"]
["Jan"]
["Heine"]
["Dorrit"]
["Christian"]
["Louise"]
["Mark"]
[]
["Ferie","F"]
["Feriefridag","FF"]
["Helligdag"]
["Sygdom","S"]
["Arb. hjemme"]

{"sheet":"December_2014","index":7,"n_rows":31,"n_cols":26,"rows_kept":31,"cut":false,"hidden":false,"merged":[]}
["År",2014,null,null,null,2014]
["Måned","Dec",null,null,null,"Dec"]
[]
["Uge",49,null,null,null,null,50,null,null,null,null,51,null,null,null,null,52,null,null,null,null,53,null,null,"Feriedage denne måned","Feriedage ferieåret 1/5-14-1/5-15"]
["Dag","Mandag","Tirsdag","Onsdag","Torsdag","Fredag","Mandag","Tirsdag","Onsdag","Torsdag","Fredag","Mandag","Tirsdag","Onsdag","Torsdag","Fredag","Mandag","Tirsdag","Onsdag","Torsdag","Fredag","Mandag","Tirsdag","Onsdag"]
["Dato",1,2,3,4,5,8,9,10,11,12,15,16,17,18,19,22,23,24,25,26,29,30,31]
["Medarbejdere"]
[]
["Line",null,null,null,null,null,null,null,null,null,null,null,null,null,null,null,"F","F","Juleaften","Juledag","1. juledag","F","F","Nytårsdag",4,17]
["Claus",null,null,null,null,null,null,null,null,null,null,null,null,null,null,null,null,null,"Juleaften","Juledag","1. juledag",null,"S","Nytårsdag",0,16]
["Palle",null,null,null,null,null,null,null,null,null,null,null,null,null,null,null,null,null,"Juleaften","Juledag","1. juledag","F","F","Nytårsdag",2,23]
["Michael",null,null,null,null,null,null,null,null,null,null,null,null,null,null,null,"F","F","Juleaften","Juledag","1. juledag","F","F","Nytårsdag",4,20]
["Morten",null,null,null,null,null,null,null,null,null,null,null,null,null,null,null,"F","F","Juleaften","Juledag","1. juledag","F","F","Nytårsdag"]
["Oliver",null,null,null,null,null,null,null,null,null,null,"S","S",null,null,null,"F","F","Juleaften","Juledag","1. juledag","F","F","Nytårsdag"]
["Povl",null,null,null,null,null,null,null,null,null,null,null,null,null,null,null,"F","F","Juleaften","Juledag","1. juledag","F","F","Nytårsdag"]
["Klaus",null,null,null,null,null,null,null,null,null,null,null,null,null,null,null,null,null,"Juleaften","Juledag","1. juledag","F","F","Nytårsdag"]
["Ken",null,null,null,null,null,null,null,null,null,null,null,null,null,null,null,"F","F","Juleaften","Juledag","1. juledag","F","F","Nytårsdag"]
["Jakob",null,null,null,null,null,null,null,null,null,null,null,null,null,null,null,null,null,"Juleaften","Juledag","1. juledag","F","F","Nytårsdag"]
["Jan",null,null,null,null,null,null,null,null,null,null,null,null,null,null,null,null,null,"Juleaften","Juledag","1. juledag",null,null,"Nytårsdag"]
["Heine",null,null,null,null,null,null,null,null,null,null,null,null,null,null,null,null,null,"Juleaften","Juledag","1. juledag","F","F","Nytårsdag"]
["Dorrit","Barsel","Barsel","Barsel","Barsel","Barsel","Barsel","Barsel","Barsel","Barsel","Barsel","Barsel","Barsel","Barsel","Barsel","Barsel","Barsel","Barsel","Juleaften","Juledag","1. juledag","Barsel","Barsel","Nytårsdag"]
["Christian",null,null,null,null,null,null,null,null,null,null,null,null,null,null,null,null,null,"Juleaften","Juledag","1. juledag",null,null,"Nytårsdag"]
["Louise",null,null,null,null,null,null,null,null,null,null,null,null,null,null,null,null,null,"Juleaften","Juledag","1. juledag",null,null,"Nytårsdag"]
["Mark",null,null,null,null,null,null,null,null,null,null,null,null,null,null,null,"F","F","Juleaften","Juledag","1. juledag","F","F","Nytårsdag"]
[]
[]
["Ferie","F"]
["Feriefridag","FF"]
["Helligdag"]
["Sygdom","S"]
["Arb. hjemme"]

{"sheet":"Januar_2015","index":8,"n_rows":31,"n_cols":25,"rows_kept":31,"cut":false,"hidden":false,"merged":[]}
["År",2015]
["Måned","Januar"]
[]
["Uge",1,null,2,null,null,null,null,3,null,null,null,null,4,null,null,null,null,5,null,null,null,null,"Feriedage denne måned","Feriedage ferieåret 1/5-14-1/5-15"]
["Dag","Torsdag","Fredag","Mandag","Tirsdag","Onsdag","Torsdag","Fredag","Mandag","Tirsdag","Onsdag","Torsdag","Fredag","Mandag","Tirsdag","Onsdag","Torsdag","Fredag","Mandag","Tirsdag","Onsdag","Torsdag","Fredag"]
["Dato",1,2,5,6,7,8,9,12,13,14,15,16,19,20,21,22,23,26,27,28,29,30]
["Medarbejder"]
[]
["Line",null,"F",null,null,null,null,null,null,null,null,null,null,null,null,null,null,null,null,null,null,null,null,1,18]
["Claus",null,null,null,null,null,null,null,null,null,"1/2 F",null,null,null,null,null,null,null,"F","F","F","F","F",5.5,21.5]
["Palle",null,"F",null,null,"S","S","S","S","S","S","S","S",null,null,null,null,null,null,null,null,null,null,1,24]
["Michael",null,"F",null,null,null,null,null,null,null,null,null,null,null,null,null,null,null,null,null,null,null,null,1,21]
["Morten",null,"F",null,null,null,null,null,null,null,null,null,"S","S"]
["Oliver"]
["Povl",null,"F"]
["Klaus"]
["Ken"]
["Jakob"]
["Jan",null,null,null,"S","S",null,null,null,null,null,null,"F","Møder til middag",null,null,null,null,null,"S","S"]
["Heine"]
["Dorrit","Barsel","Barsel","Barsel","Barsel","Barsel","Barsel","Barsel","Barsel","Barsel","Barsel","Barsel","Barsel","Barsel","Barsel","Barsel","Barsel","Barsel","Barsel","Barsel","Barsel","Barsel","Barsel"]
["Christian"]
["Louise"]
["Mark",null,"F",null,null,null,null,null,"S"]
[]
[]
["Ferie","F"]
["Feriefridag","FF"]
["Helligdag"]
["Sygdom","S"]
["Arb. hjemme"]

{"sheet":"Februar_2015","index":9,"n_rows":31,"n_cols":23,"rows_kept":31,"cut":false,"hidden":false,"merged":[]}
["År",2015]
["Måned","Februar"]
[]
["Uge",6,null,null,null,null,7,null,null,null,null,8,null,null,null,null,9,null,null,null,null,"Feriedage denne måned","Feriedage ferieåret 1/5-14-1/5-15"]
["Dag","Mandag","Tirsdag","Onsdag","Torsdag","Fredag","Mandag","Tirsdag","Onsdag","Torsdag","Fredag","Mandag","Tirsdag","Onsdag","Torsdag","Fredag","Mandag","Tirsdag","Onsdag","Torsdag","Fredag"]
["Dato",2,3,4,5,6,9,10,11,12,13,16,17,18,19,20,23,24,25,26,27]
["Medarbejder"]
[]
["Line","F",null,null,null,"S",null,null,null,null,null,null,null,null,null,null,null,null,null,null,null,1,19]
["Claus",null,null,null,null,null,null,null,null,null,null,null,null,null,null,null,null,null,null,null,null,0,21.5]
["Palle",null,null,null,null,null,null,null,null,null,null,null,null,null,null,null,null,null,null,null,null,0,24]
["Michael",null,"S","S",null,null,null,null,null,null,null,null,null,null,null,null,null,null,null,null,null,0,21]
["Morten",null,null,null,"Barn Syg",null,null,null,null,null,null,null,null,null,null,"S"]
["Oliver"]
["Povl",null,null,null,null,null,null,null,null,null,"F"]
["Klaus"]
["Ken"]
["Jakob"]
["Jan",null,null,null,null,null,"Fri u. løn"]
["Heine"]
["Dorrit","Barsel","Barsel","Barsel","Barsel","Barsel","Barsel","Barsel","Barsel","Barsel","Barsel","Barsel","Barsel","Barsel","Barsel","Barsel","Barsel","Barsel","Barsel","Barsel","Barsel"]
["Christian","F","F","F","F","F"]
["Louise","1/2 FX"]
["Mark"]
[]
[]
["Ferie","F"]
["Feriefridag","FF"]
["Helligdag"]
["Sygdom","S"]
["Arb. hjemme"]

{"sheet":"Marts_2015","index":10,"n_rows":31,"n_cols":25,"rows_kept":31,"cut":false,"hidden":false,"merged":[]}
["År",2015]
["Måned","Marts"]
[]
["Uge",10,null,null,null,null,11,null,null,null,null,12,null,null,null,null,13,null,null,null,null,14,null,"Feriedage denne måned","Feriedage ferieåret 1/5-14-1/5-15"]
["Dag","Mandag","Tirsdag","Onsdag","Torsdag","Fredag","Mandag","Tirsdag","Onsdag","Torsdag","Fredag","Mandag","Tirsdag","Onsdag","Torsdag","Fredag","Mandag","Tirsdag","Onsdag","Torsdag","Fredag","Mandag","Tirsdag"]
["Dato",2,3,4,5,6,9,10,11,12,13,16,17,18,19,20,23,24,25,26,27,30,31]
["Medarbejder"]
[]
["Line",null,null,null,null,null,null,"Møder senere",null,null,null,null,null,null,null,null,null,null,null,null,null,null,null,0,19]
["Claus",null,null,null,null,null,null,null,"S",null,"F","F","F","F","F","F",null,null,null,null,null,null,null,6,27.5]
["Palle",null,null,null,null,null,null,null,null,null,null,null,null,null,null,null,null,null,null,null,null,"F","F",2,26]
["Michael",null,null,null,null,null,null,null,null,null,null,null,null,null,null,null,null,null,null,null,null,null,null,0,21]
["Morten",null,null,null,null,null,"S","S","S",null,null,null,null,null,null,null,null,null,null,null,null,"F","F"]
["Oliver"]
["Povl",null,null,null,null,null,null,null,null,null,null,null,null,null,null,null,null,null,null,null,null,"F","F"]
["Klaus"]
["Ken",null,null,null,null,null,null,null,null,null,null,null,null,null,null,null,null,"F",null,null,null,"F","F"]
["Jakob","S","S",null,null,"F",null,null,"F",null,null,null,null,null,null,null,null,null,"S",null,null,"F","F"]
["Jan"]
["Heine"]
["Dorrit","Barsel","Barsel","Barsel","Barsel","Barsel","Barsel","Barsel","Barsel","Barsel","Barsel","Barsel","Barsel","Barsel","Barsel","Barsel","Barsel","Barsel","Barsel","Barsel","Barsel","Barsel","Barsel"]
["Christian"]
["Louise",null,null,null,null,null,null,null,null,null,null,null,null,null,"Møder senere"]
["Mark",null,null,null,null,null,null,null,null,null,null,null,null,null,null,"S"]
[]
[]
["Ferie","F"]
["Feriefridag","FF"]
["Helligdag"]
["Sygdom","S"]
["Arb. hjemme"]

{"sheet":"April_2015","index":11,"n_rows":30,"n_cols":25,"rows_kept":30,"cut":false,"hidden":false,"merged":[]}
["År",2015]
["Måned","April"]
[]
["Uge",14,null,null,null,null,15,null,null,null,null,16,null,null,null,null,17,null,null,null,null,18,null,"Feriedage denne måned","Feriedage ferieåret 1/5-14-1/5-15"]
["Dag","Onsdag","Torsdag","Fredag","Mandag","Tirsdag","Onsdag","Torsdag","Fredag","Mandag","Tirsdag","Onsdag","Torsdag","Fredag","Mandag","Tirsdag","Onsdag","Torsdag","Fredag","Mandag","Tirsdag","Onsdag","Torsdag"]
["Dato",1,2,3,6,7,8,9,10,13,14,15,16,17,20,21,22,23,24,27,28,29,30]
["Medarbejder"]
[]
["Line",null,"Skærtorsdag","Langfredag","2. påskedag",null,null,null,null,null,"S","S",null,null,null,null,null,null,null,null,null,null,null,0,19]
["Claus",null,"Skærtorsdag","Langfredag","2. påskedag",null,null,null,null,null,null,null,null,null,null,null,null,null,null,null,null,null,null,0,27.5]
["Palle","F","Skærtorsdag","Langfredag","2. påskedag",null,null,"S",null,null,null,null,null,null,null,null,null,null,"Arb. hjemme",null,null,null,null,1,27]
["Michael",null,"Skærtorsdag","Langfredag","2. påskedag","F","F","F","F",null,null,null,null,null,null,null,null,null,null,null,null,null,null,4,25]
["Morten","F","Skærtorsdag","Langfredag","2. påskedag",null,null,null,"1/2 F",null,null,null,null,"F",null,"F"]
["Oliver",null,"Skærtorsdag","Langfredag","2. påskedag"]
["Povl","F","Skærtorsdag","Langfredag","2. påskedag",null,null,null,null,null,null,null,null,null,null,null,null,null,"F"]
["Klaus",null,"Skærtorsdag","Langfredag","2. påskedag"]
["Ken","F","Skærtorsdag","Langfredag","2. påskedag",null,null,null,null,null,null,null,null,null,null,null,null,"F","F","F","F","F","F"]
["Jakob",null,"Skærtorsdag","Langfredag","2. påskedag",null,null,null,null,null,null,null,null,null,null,"F",null,null,"F","F","F","F","F"]
["Heine",null,"Skærtorsdag","Langfredag","2. påskedag","F","F","F","F"]
["Dorrit","Barsel","Barsel","Barsel","Barsel","Barsel","Barsel","Barsel","Barsel","Barsel","Barsel","Barsel","Barsel","Barsel","Barsel","Barsel","Barsel","Barsel","Barsel","Barsel","Barsel","Barsel","Barsel"]
["Christian",null,"Skærtorsdag","Langfredag","2. påskedag"]
["Louise",null,"Skærtorsdag","Langfredag","2. påskedag"]
["Mark",null,"Skærtorsdag","Langfredag","2. påskedag",null,null,null,null,null,null,null,null,null,null,null,null,null,"Arb. hjemme"]
["Søren",null,"Skærtorsdag","Langfredag","2. påskedag",null,null,null,null,null,null,null,"F","F"]
[]
["Ferie","F"]
["Feriefridag","FF"]
["Helligdag"]
["Sygdom","S"]
["Arb. hjemme"]

{"sheet":"Maj_2015","index":12,"n_rows":30,"n_cols":24,"rows_kept":30,"cut":false,"hidden":false,"merged":[]}
["År",2015]
["Måned","Maj"]
[]
["Uge",18,19,null,null,null,null,20,null,null,null,null,21,null,null,null,null,22,null,null,null,null,"Feriedage denne måned","Feriedage ferieåret 1/5-15-1/5-16"]
["Dag","Fredag","Mandag","Tirsdag","Onsdag","Torsdag","Fredag","Mandag","Tirsdag","Onsdag","Torsdag","Fredag","Mandag","Tirsdag","Onsdag","Torsdag","Fredag","Mandag","Tirsdag","Onsdag","Torsdag","Fredag"]
["Dato",1,4,5,6,7,8,11,12,13,14,15,18,19,20,21,22,25,26,27,28,29]
["Medarbejder"]
[]
["Line","St. Bededag",null,null,null,null,null,null,null,null,"Kr. Himmelfartsdag","F","F","F","F","F","F","2. Pinsedag",null,null,null,null,6,6]
["Claus","St. Bededag",null,null,null,null,null,null,null,null,"Kr. Himmelfartsdag",null,null,null,null,null,null,"2. Pinsedag",null,null,null,null,0,0]
["Palle","St. Bededag","F(sidste ferieår)",null,null,"F(sidste ferieår)",null,null,null,null,"Kr. Himmelfartsdag","F",null,null,null,null,null,"2. Pinsedag",null,null,null,null,1,1]
["Michael","St. Bededag",null,null,null,null,null,null,null,null,"Kr. Himmelfartsdag","F",null,null,null,null,null,"2. Pinsedag",null,null,null,null,1,1]
["Morten","St. Bededag","S","S",null,null,"syg barn",null,null,null,"Kr. Himmelfartsdag",null,"F","F","F","F","F","2. Pinsedag",null,null,null,null,5,5]
["Oliver","St. Bededag",null,null,null,null,null,null,null,null,"Kr. Himmelfartsdag",null,null,null,null,null,null,"2. Pinsedag",null,null,null,null,0,0]
["Povl","St. Bededag",null,null,null,null,null,null,null,null,"Kr. Himmelfartsdag","F",null,null,null,null,null,"2. Pinsedag",null,null,null,null,1,1]
["Klaus","St. Bededag",null,null,null,null,null,null,null,null,"Kr. Himmelfartsdag",null,null,null,null,null,null,"2. Pinsedag",null,null,null,null,0,0]
["Ken","St. Bededag",null,null,null,null,null,null,null,null,"Kr. Himmelfartsdag",null,null,null,null,null,null,"2. Pinsedag","F","F",null,null,2,2]
["Jakob","St. Bededag",null,null,null,null,null,null,null,"S","Kr. Himmelfartsdag","S","S",null,null,null,null,"2. Pinsedag",null,null,null,null,0,0]
["Heine","St. Bededag",null,null,null,null,null,null,null,null,"Kr. Himmelfartsdag","Flex",null,null,null,null,null,"2. Pinsedag",null,null,null,null,0,0]
["Dorrit","St. Bededag",null,null,null,null,null,"Barsel slut",null,null,"Kr. Himmelfartsdag",null,null,null,null,null,null,"2. Pinsedag",null,null,null,null,0,0]
["Christian","St. Bededag","F",null,null,null,null,null,null,null,"Kr. Himmelfartsdag",null,null,null,null,null,null,"2. Pinsedag",null,null,null,null,1,1]
["Louise","St. Bededag","S","S",null,null,null,null,null,null,"Kr. Himmelfartsdag",null,null,null,null,null,null,"2. Pinsedag",null,null,null,null,0,0]
["Mark","St. Bededag",null,null,null,null,null,null,null,null,"Kr. Himmelfartsdag",null,null,null,null,null,null,"2. Pinsedag",null,null,null,null,0,0]
["Søren","St. Bededag",null,null,null,null,null,null,null,null,"Kr. Himmelfartsdag",null,null,null,null,null,null,"2. Pinsedag",null,null,null,null,0,0]
[]
["Ferie","F"]
["Feriefridag","FF"]
["Helligdag"]
["Sygdom","S"]
["Arb. hjemme"]

{"sheet":"Juni_2015","index":13,"n_rows":30,"n_cols":25,"rows_kept":30,"cut":false,"hidden":false,"merged":[]}
["År",2015]
["Måned","Juni"]
[]
["Uge",23,null,null,null,null,24,null,null,null,null,25,null,null,null,null,26,null,null,null,null,27,null,"Forbrug feriedage denne måned","Feriedage ferieåret 1/5-15-1/5-16"]
["Dag","Mandag","Tirsdag","Onsdag","Torsdag","Fredag","Mandag","Tirsdag","Onsdag","Torsdag","Fredag","Mandag","Tirsdag","Onsdag","Torsdag","Fredag","Mandag","Tirsdag","Onsdag","Torsdag","Fredag","Mandag","Tirsdag"]
["Dato",1,2,3,4,5,8,9,10,11,12,15,16,17,18,19,22,23,24,25,26,29,30]
["Medarbejder"]
[]
["Line",null,null,null,null,"Grundlovsdag",null,null,null,null,null,null,null,null,null,null,null,null,null,null,null,null,null,0,6]
["Claus",null,null,null,null,"Grundlovsdag",null,null,null,null,null,null,null,null,null,"F(sidste ferieår)","F(sidste ferieår)","F(sidste ferieår)",null,null,null,null,null,0,0]
["Palle",null,null,null,null,"Grundlovsdag",null,null,null,null,null,null,null,null,null,null,null,null,null,null,null,null,null,0,1]
["Michael",null,null,null,null,"Grundlovsdag",null,null,"Konference",null,null,null,null,null,null,null,"S","S",null,null,null,null,null,0,1]
["Morten",null,null,null,null,"Grundlovsdag",null,null,null,null,null,null,null,null,null,null,null,null,null,null,null,null,null,0,5]
["Oliver",null,null,null,null,"Grundlovsdag",null,null,"F","F","F","F","F","F","F","F","S",null,null,null,null,null,null,8,8]
["Povl",null,null,null,null,"Grundlovsdag",null,null,null,null,null,null,null,null,null,null,null,null,null,null,null,null,null,0,1]
["Klaus",null,null,null,null,"Grundlovsdag",null,null,null,null,null,null,null,null,null,null,null,null,null,null,null,null,null,0,0]
["Ken",null,null,null,null,"Grundlovsdag",null,null,null,null,null,null,null,null,null,null,null,null,null,null,null,null,null,0,2]
["Jakob",null,null,null,null,"Grundlovsdag",null,null,"Konference",null,null,null,null,null,null,null,null,null,null,null,null,null,null,0,0]
["Heine",null,null,null,null,"Grundlovsdag",null,null,null,null,null,null,null,null,null,null,null,null,null,null,null,null,null,0,0]
["Dorrit",null,null,null,null,"Grundlovsdag",null,null,null,null,null,null,null,null,null,null,null,null,null,null,null,null,null,0,0]
["Christian",null,null,null,null,"Grundlovsdag",null,null,null,null,null,null,null,null,null,null,null,null,null,null,null,null,null,0,1]
["Louise",null,"S",null,null,"Grundlovsdag",null,null,null,null,null,null,null,null,null,null,null,null,null,null,null,null,null,0,0]
["Mark",null,"F",null,null,"Grundlovsdag",null,null,null,null,null,null,null,null,"F","F",null,null,null,null,null,null,null,3,3]
["Søren",null,null,null,null,"Grundlovsdag",null,null,null,null,null,"S","Arb. hjemme",null,null,"F",null,null,null,null,null,null,null,1,1]
[]
["Ferie","F"]
["Feriefridag","FF"]
["Helligdag"]
["Sygdom","S"]
["Arb. hjemme"]

{"sheet":"Juli_2015","index":14,"n_rows":31,"n_cols":26,"rows_kept":31,"cut":false,"hidden":false,"merged":[]}
["År",2015]
["Måned","Juli"]
[]
["Uge",27,null,null,28,null,null,null,null,29,null,null,null,null,30,null,null,null,null,31,null,null,null,null,"Feriedage denne måned","Feriedage ferieåret 1/5-15-1/5-16"]
["Dag","Onsdag","Torsdag","Fredag","Mandag","Tirsdag","Onsdag","Torsdag","Fredag","Mandag","Tirsdag","Onsdag","Torsdag","Fredag","Mandag","Tirsdag","Onsdag","Torsdag","Fredag","Mandag","Tirsdag","Onsdag","Torsdag","Fredag"]
["Dato",1,2,3,6,7,8,9,10,13,14,15,16,17,20,21,22,23,24,27,28,29,30,31]
["Medarbejder"]
[]
["Line",null,null,null,null,null,null,null,null,"F","F","F","F","F","F","F","F","F","F","F","F","F","F","F",15,21]
["Claus",null,null,null,null,null,null,null,null,"F","F","F","F","F","F","F","F","F","F",null,null,null,null,null,10,10]
["Palle",null,null,null,null,null,null,null,null,"F","F","F","F","F","F","F","F","F","F","F","F","F","F","F",15,16]
["Michael",null,null,null,null,null,null,null,null,"F","F","F","F","F","F","F","F","F","F","F","F","F","F","F",15,16]
["Morten","S",null,null,null,null,null,"F","F","F","F","F","F","F","F","F","F","F","F","F","F","F",null,null,15,20]
["Oliver",null,null,null,null,null,null,null,null,"Arb","Arb","Arb","Arb","Arb","Afsp. forud","Afsp. forud","Afsp. forud","Afsp. forud","Afsp. forud",null,null,null,null,null,0,8]
["Povl",null,null,null,null,null,null,null,null,"F","F","F","F","F","F","F","F","F","F","F","F","F","F","F",15,16]
["Klaus",null,null,null,null,null,null,null,null,"F","F","F","F","F","F","F","F","F","F",null,null,null,null,null,10,10]
["Ken",null,null,null,"F","F","F","F","F","F","F","F","F","F","F","F","F","F","F",null,null,null,null,null,15,17]
["Jakob",null,null,null,"F","F","F","F","F","F","F","F","F","F","F","F","F","F","F",null,null,null,null,null,15,15]
["Heine",null,null,null,"F","F","F","F","F","F","F","F","F","F",null,null,null,null,null,null,null,null,null,null,10,10]
["Dorrit",null,null,null,"F","F","F","F","F","F","F","F","F","F","F","F","F","F","F",null,null,null,null,null,15,15]
["Christian"]
["Louise",null,null,null,null,null,null,null,null,"F","F","F","F","F","F","F","F","F","F","F","F","F","F","F",15,15]
["Mark",null,null,null,null,null,null,null,null,"F","F","F","F","F","F","F","F","F","F","F","F","F","F","F",15,18]
["Søren","F",null,null,"F","F","F","F","F","F","F","F","F","F","F","F","F","F","F",null,null,null,null,null,15,16]
[]
["Ferie","F"]
["Feriefridag","FF"]
["Helligdag"]
["Sygdom","S"]
["Industriferie","Lukket"]
["Arb. hjemme"]

{"sheet":"August_2015","index":15,"n_rows":33,"n_cols":24,"rows_kept":33,"cut":false,"hidden":false,"merged":[]}
["År",2015]
["Måned","August"]
[]
["Uge",32,null,null,null,null,33,null,null,null,null,34,null,null,null,null,35,null,null,null,null,36,"Feriedage denne måned","Feriedage ferieåret 1/5-15-1/5-16"]
["Dag","Mandag","Tirsdag","Onsdag","Torsdag","Fredag","Mandag","Tirsdag","Onsdag","Torsdag","Fredag","Mandag","Tirsdag","Onsdag","Torsdag","Fredag","Mandag","Tirsdag","Onsdag","Torsdag","Fredag","Mandag"]
["Dato",3,4,5,6,7,10,11,12,13,14,17,18,19,20,21,24,25,26,27,28,31]
["Medarbejder"]
[]
["Line",null,null,null,null,null,null,null,null,"S","S",null,null,null,"Kvartalsmøde ",null,null,null,null,null,null,null,0,21]
["Claus",null,null,null,null,null,"F","F","F","F","F",null,null,null,"Kvartalsmøde ",null,"S","S",null,null,null,null,5,15]
["Palle",null,null,null,null,null,null,null,null,null,null,null,null,null,"Kvartalsmøde ",null,null,null,null,null,null,null,0,16]
["Michael",null,null,null,null,null,null,null,null,null,null,null,null,null,"Kvartalsmøde ",null,null,null,null,null,null,null,0,16]
["Morten",null,null,null,null,null,null,null,null,null,null,null,null,null,"Kvartalsmøde + 1/2 feriedag",null,null,null,null,null,"F",null,1.5,21.5]
["Oliver",null,null,null,null,null,null,null,null,null,null,null,null,null,"Kvartalsmøde ",null,null,null,null,null,null,null,0,8]
["Povl","F","F","F",null,null,null,null,null,null,null,null,null,null,"Kvartalsmøde ",null,null,null,null,null,null,null,3,19]
["Klaus",null,null,null,null,null,null,null,null,null,null,null,null,null,"Kvartalsmøde ",null,null,null,null,null,null,null,0,10]
["Ken",null,null,null,null,null,null,null,null,null,null,null,null,null,"Kvartalsmøde ",null,null,null,null,null,null,null,0,17]
["Jakob",null,null,null,null,null,null,null,null,null,null,null,"S/Syg barn",null,"Kvartalsmøde ",null,null,null,null,null,null,null,0,15]
["Heine",null,null,null,null,null,null,null,null,null,null,null,null,null,"Kvartalsmøde ",null,null,null,null,null,null,null,0,10]
["Dorrit",null,null,null,null,null,null,null,null,null,null,null,null,null,"Kvartalsmøde ",null,null,null,null,null,null,null,0,15]
["Christian",null,null,null,null,null,null,null,null,null,null,null,null,null,"Kvartalsmøde "]
["Louise",null,null,null,null,null,null,null,null,null,null,null,null,null,"Kvartalsmøde ",null,null,null,null,null,null,null,0,15]
["Mark","F",null,null,null,null,null,null,null,null,null,null,null,null,"Kvartalsmøde ",null,null,null,null,null,null,null,1,19]
["Søren Bertelsen",null,null,null,null,null,null,null,null,null,null,"S/Syg barn","S/Syg barn",null,"Kvartalsmøde "]
["Søren Jensen"]
["Karsten Bækgaard",null,null,null,null,null,null,null,null,null,null,null,null,null,null,null,null,null,null,null,null,null,0]
[]
[]
["Ferie","F"]
["Feriefridag","FF"]
["Helligdag"]
["Sygdom","S"]
["Arb. hjemme"]

{"sheet":"September_2015","index":16,"n_rows":31,"n_cols":25,"rows_kept":31,"cut":false,"hidden":false,"merged":[]}
["År",2015]
["Måned","September"]
[]
["Uge",36,null,null,null,37,null,null,null,null,38,null,null,null,null,39,null,null,null,null,40,null,null,"Feriedage denne måned","Feriedage ferieåret 1/5-15-1/5-16"]
["Dag","Tirsdag","Onsdag","Torsdag","Fredag","Mandag","Tirsdag","Onsdag","Torsdag","Fredag","Mandag","Tirsdag","Onsdag","Torsdag","Fredag","Mandag","Tirsdag","Onsdag","Torsdag","Fredag","Mandag","Tirsdag","Onsdag"]
["Dato",1,2,3,4,7,8,9,10,11,14,15,16,17,18,21,22,23,24,25,28,29,30]
["Medarbejder"]
[]
["Line",null,null,null,"FF",null,null,null,null,null,null,null,null,null,null,null,null,null,null,null,null,null,null,null,"21+1 ff"]
["Claus",null,null,null,null,null,null,null,null,null,null,null,null,null,null,null,null,"F","F","F","F","F","F",6,21]
["Palle",null,null,null,null,null,null,null,null,null,null,null,null,null,null,null,null,null,null,null,null,null,null,0,16]
["Michael","S","S",null,null,null,null,null,null,null,null,null,null,null,null,null,null,null,null,null,null,null,null,0,16]
["Morten",null,null,null,null,null,"S Barn syg",null,null,null,null,null,null,null,null,null,null,null,null,null,"S","S",null,0,21.5]
["Oliver",null,null,null,null,null,null,null,null,null,null,null,null,null,null,null,null,null,null,null,null,null,null,0,8]
["Povl",null,null,null,null,null,null,null,null,null,null,null,null,null,null,null,null,null,null,null,null,null,null,0,19]
["Klaus",null,null,null,null,null,null,null,null,null,null,null,null,null,null,null,null,null,null,null,null,null,null,0,10]
["Ken",null,null,null,null,null,null,null,null,null,null,null,null,null,null,null,null,null,null,null,null,null,null,0,17]
["Jakob",null,null,null,null,null,null,null,"F","F",null,null,null,null,null,null,null,null,null,null,null,null,null,2,17]
["Heine",null,null,null,null,null,null,null,null,null,null,null,null,null,null,null,null,null,null,null,null,null,null,0,10]
["Dorrit",null,null,null,null,null,null,null,null,null,null,null,null,null,null,null,null,null,null,null,null,null,null,0,15]
["Louise",null,null,null,null,null,null,null,null,null,null,null,null,null,null,null,null,null,null,null,null,null,null,0,15]
["Mark",null,null,null,null,null,null,null,null,null,null,null,null,null,null,null,null,null,null,null,null,null,null,0,19]
["Søren Jensen",null,null,null,null,null,null,null,null,null,null,null,null,null,null,null,null,null,null,null,null,null,null,0,0]
["Karsten",null,null,null,null,null,null,null,null,null,null,null,"F","F","F",null,null,null,null,null,null,null,null,3,3]
[]
["Christian"]
["Ferie","F"]
["Feriefridag","FF"]
["Helligdag"]
["Sygdom","S"]
["Arb. hjemme"]

{"sheet":"Oktober_2015","index":17,"n_rows":31,"n_cols":25,"rows_kept":31,"cut":false,"hidden":false,"merged":[]}
["År",2015]
["Måned","Oktober"]
[]
["Uge",40,null,41,null,null,null,null,42,null,null,null,null,43,null,null,null,null,44,null,null,null,null,"Feriedage denne måned","Feriedage ferieåret 1/5-15-1/5-16"]
["Dag","Torsdag","Fredag","Mandag","Tirsdag","Onsdag","Torsdag","Fredag","Mandag","Tirsdag","Onsdag","Torsdag","Fredag","Mandag","Tirsdag","Onsdag","Torsdag","Fredag","Mandag ","Tirsdag","Onsdag","Torsdag","Fredag"]
["Dato",1,2,5,6,7,8,9,12,13,14,15,16,19,20,21,22,23,26,27,28,29,30]
["Medarbejder"]
[]
["Line",null,null,null,null,null,null,null,null,null,null,null,null,null,null,null,null,null,null,null,null,null,null,0,"21+1 ff"]
["Claus","F","F",null,null,null,null,null,null,null,null,null,null,null,null,null,null,null,null,"S","S",null,null,2,23]
["Palle",null,null,null,null,null,null,null,"F","F","F","F","F",null,null,null,null,null,null,null,null,null,null,5,21]
["Michael",null,null,null,null,null,null,null,null,null,null,null,null,null,null,null,null,null,null,null,null,null,null,0,16]
["Morten",null,null,null,null,null,null,null,"S",null,null,null,null,null,null,null,null,null,null,null,null,null,null,0,21.5]
["Oliver",null,null,null,null,null,null,null,null,null,null,null,null,null,null,null,null,null,null,null,null,null,null,0,8]
["Povl",null,null,null,null,null,null,null,null,null,null,null,null,null,null,null,null,null,null,null,null,null,null,0,19]
["Klaus",null,null,null,null,null,null,null,null,"1/2 F","1/2 F",null,null,null,null,null,null,null,null,null,null,null,null,1,11]
["Ken",null,null,null,null,null,null,null,null,null,null,null,null,null,null,null,null,null,null,null,null,null,null,0,17]
["Jakob",null,null,null,null,null,null,null,null,null,null,null,null,null,null,null,null,null,null,null,null,null,null,0,17]
["Heine",null,null,null,null,null,null,null,null,null,null,null,null,null,null,null,null,null,null,null,null,null,null,0,10]
["Dorrit",null,null,null,null,null,null,null,null,null,null,null,null,null,null,null,null,null,null,null,null,null,null,0,15]
["Christian",null,null,null,null,null,null,null,null,null,null,null,null,null,null,null,null,null,null,null,null,null,null,0,0]
["Louise",null,null,null,null,null,null,null,null,null,null,null,null,null,null,null,null,null,null,null,null,null,null,0,15]
["Mark",null,null,null,null,null,"S","S",null,null,null,null,null,null,null,null,null,null,null,null,null,null,null,0,19]
["Karsten",null,null,null,null,null,null,null,null,null,null,null,null,null,null,null,null,"F",null,null,null,null,null,1,4]
["Søren Jensen",null,null,null,null,null,null,null,"F","F",null,null,null,null,null,null,null,null,null,null,null,null,null,0,0]
[]
["Ferie","F"]
["Feriefridag","FF"]
["Helligdag"]
["Sygdom","S"]
["Arb. hjemme"]

{"sheet":"November_2015","index":18,"n_rows":31,"n_cols":24,"rows_kept":31,"cut":false,"hidden":false,"merged":[]}
["År",2015]
["Måned","November"]
[]
["Uge",45,null,null,null,null,46,null,null,null,null,47,null,null,null,null,48,null,null,null,null,49,"Feriedage denne måned","Feriedage ferieåret 1/5-15-1/5-16"]
["Dag","Mandag","Tirsdag","Onsdag","Torsdag","Fredag","Mandag","Tirsdag","Onsdag","Torsdag","Fredag","Mandag","Tirsdag","Onsdag","Torsdag","Fredag","Mandag","Tirsdag","Onsdag","Torsdag","Fredag","Mandag"]
["Dato",2,3,4,5,6,9,10,11,12,13,16,17,18,19,20,23,24,25,26,27,30]
["Medarbejder"]
[]
["Line","S","S","S",null,null,null,null,null,null,null,null,null,null,"Kvartalsmøde",null,null,null,null,null,null,null,0,"21+1 ff"]
["Claus",null,null,null,null,null,null,null,null,null,null,null,null,null,"Kvartalsmøde",null,null,null,null,null,null,null,0,23]
["Palle",null,null,null,null,null,null,null,null,null,null,null,null,null,"Kvartalsmøde",null,null,"S",null,null,null,null,0,21]
["Michael",null,null,null,null,null,null,null,null,null,null,null,null,null,"Kvartalsmøde",null,null,null,null,null,null,null,0,16]
["Morten",null,null,null,null,null,null,"Barn syg","FF","FF","FF",null,null,null,"Kvartalsmøde",null,null,null,null,null,null,null,"3 FF","21,5 + 3 FF"]
["Oliver",null,null,null,null,null,null,null,null,null,null,null,null,null,null,null,null,null,null,null,null,null,0,8]
["Povl",null,null,null,null,null,null,null,null,null,null,null,null,null,"Kvartalsmøde",null,null,null,null,null,null,null,0,19]
["Klaus",null,null,null,null,null,null,null,null,null,null,null,null,null,"Kvartalsmøde",null,null,null,null,null,null,null,0,11]
["Ken",null,null,null,null,null,null,null,null,null,null,null,null,null,"Kvartalsmøde",null,null,null,null,null,null,null,0,17]
["Jakob",null,null,null,null,null,null,null,null,null,null,null,null,null,"Kvartalsmøde",null,null,"F",null,null,null,null,1,18]
["Heine",null,null,null,null,null,null,null,null,null,null,null,null,null,"Kvartalsmøde",null,null,null,null,null,null,null,0,10]
["Dorrit",null,null,null,null,null,null,null,null,null,null,null,null,null,"Kvartalsmøde",null,null,null,null,null,null,null,0,15]
["Christian",null,null,null,null,null,null,null,null,null,null,null,null,null,"Kvartalsmøde",null,null,null,null,null,null,null,0]
["Louise",null,null,null,null,null,null,null,null,null,null,null,null,null,"Kvartalsmøde",null,null,null,null,null,null,null,0,15]
["Mark",null,null,null,null,null,null,null,null,null,null,null,null,null,"Kvartalsmøde",null,null,null,null,null,null,null,0,19]
["Karsten",null,null,null,null,null,null,null,null,null,null,null,null,null,"Kvartalsmøde",null,null,null,null,null,null,null,0,4]
["Søren Jensen",null,null,null,null,null,null,null,null,null,null,null,null,null,"Kvartalsmøde",null,null,null,null,null,null,null,0,0]
[]
["Ferie","F"]
["Feriefridag","FF"]
["Helligdag"]
["Sygdom","S"]
["Arb. hjemme"]

{"sheet":"December_2015","index":19,"n_rows":26,"n_cols":40,"rows_kept":26,"cut":false,"hidden":false,"merged":[[0,33,3,33],[0,34,3,34],[0,35,3,35],[0,36,3,36],[0,37,3,37],[0,38,3,38],[0,39,3,39],[0,32,3,32]]}
[null,null,null,null,null,null,null,null,null,null,null,null,null,null,null,null,null,null,null,null,null,null,null,null,null,null,null,null,null,null,null,null,"Ferie","FerieFri","Sygedage","Arb. hjemme","Senior dag","Barn 1 Sygdag","Afspadsering","Fri"]
[]
["År",2015]
["Måned","Dec",{"$f":"IF(B4=\"Jan\",1,IF(B4=\"Feb\",2,IF(B4=\"Mar\",3,IF(B4=\"Apr\",4,IF(B4=\"Maj\",5,IF(B4=\"Jun\",6,IF(B4=\"Jul\",7,IF(B4=\"Aug\",8,IF(B4=\"Sep\",9,IF(B4=\"Okt\",10,IF(B4=\"Nov\",11,IF(B4=\"Dec\",12,\"\"))))))))))))","v":12}]
[null,null,null,null,null,null,null,null,null,null,null,null,null,null,null,null,null,null,null,null,null,null,null,null,null,null,null,null,null,null,null,null,"F","FF","S","Ah.","Sen dag","BS","Afsp.","Fri"]
["Uge",{"$f":"WEEKNUM(B8,21)","v":49},{"$f":"IF(WEEKDAY(C8,11)=1,WEEKNUM(C8,21),\"\")","v":""},{"$f":"IF(WEEKDAY(D8,11)=1,WEEKNUM(D8,21),\"\")","v":""},"",50,"","","","",51,"","","","",52,"","","","",53,"",{"$f":"IF(W8=\"\",\"\",IF(WEEKDAY(W8,11)=1,WEEKNUM(W8,21),\"\"))","v":""},{"$f":"IF(X8=\"\",\"\",IF(WEEKDAY(X8,11)=1,WEEKNUM(X8,21),\"\"))","v":""},"",1,"","","","",2,""]
["Dag",{"$f":"PROPER(TEXT(B8,\"DDDD\"))","v":"Tirsdag"},{"$f":"PROPER(TEXT(C8,\"DDDD\"))","v":"Onsdag"},{"$f":"PROPER(TEXT(D8,\"DDDD\"))","v":"Torsdag"},"Fredag","Mandag","Tirsdag","Onsdag","Torsdag","Fredag","Mandag","Tirsdag","Onsdag","Torsdag","Fredag","Mandag","Tirsdag","Onsdag","Torsdag","Fredag","Mandag","Tirsdag","Onsdag","Torsdag",{"$f":"PROPER(TEXT(Y8,\"DDDD\"))","v":"Fredag"},{"$f":"PROPER(TEXT(Z8,\"DDDD\"))","v":"Mandag"},{"$f":"PROPER(TEXT(AA8,\"DDDD\"))","v":"Tirsdag"},{"$f":"PROPER(TEXT(AB8,\"DDDD\"))","v":"Onsdag"},{"$f":"PROPER(TEXT(AC8,\"DDDD\"))","v":"Torsdag"},{"$f":"PROPER(TEXT(AD8,\"DDDD\"))","v":"Fredag"},{"$f":"PROPER(TEXT(AE8,\"DDDD\"))","v":"Mandag"},{"$f":"PROPER(TEXT(AF8,\"DDDD\"))","v":"Tirsdag"}]
["Dato",{"$f":"DATE(B3,C4,1)","v":"2015-12-01"},{"$f":"IF(WEEKDAY(B8,11)=5,B8+3,B8+1)","v":"2015-12-02"},"2015-12-03","2015-12-04",{"$f":"IF(WEEKDAY(E8,11)=5,E8+3,E8+1)","v":"2015-12-07"},{"$f":"IF(WEEKDAY(F8,11)=5,F8+3,F8+1)","v":"2015-12-08"},"2015-12-09","2015-12-10","2015-12-11","2015-12-14","2015-12-15","2015-12-16","2015-12-17","2015-12-18","2015-12-21",{"$f":"IF(AND(WEEKDAY(P8,11)=5,MONTH(P8+3)>$C$4),\"\",IF(WEEKDAY(P8,11)=5,P8+3,P8+1))","v":"2015-12-22"},"2015-12-23","2015-12-24","2015-12-25",{"$f":"IF(AND(WEEKDAY(T8,11)=5,MONTH(T8+3)>$C$4),\"\",IF(WEEKDAY(T8,11)=5,T8+3,T8+1))","v":"2015-12-28"},{"$f":"IF(MONTH(U8+1)>$C$4,\"\",IF(AND(WEEKDAY(U8,11)=5,MONTH(U8+3)>$C$4),\"\",IF(WEEKDAY(U8,11)=5,U8+3,U8+1)))","v":"2015-12-29"},{"$f":"IF(MONTH(V8+1)>$C$4,\"\",IF(AND(WEEKDAY(V8,11)=5,MONTH(V8+3)>$C$4),\"\",IF(WEEKDAY(V8,11)=5,V8+3,V8+1)))","v":"2015-12-30"},{"$f":"IF(W8=\"\",\"\",IF(WEEKDAY(W8,11)=5,W8+3,W8+1))","v":"2015-12-31"},"2016-01-01","2016-01-04","2016-01-05","2016-01-06","2016-01-07","2016-01-08","2016-01-11","2016-01-12"]
[null,{"$f":"HelligdagsNavn(B8,0,0)","v":""},{"$f":"HelligdagsNavn(C8,0,0)","v":""},"","","","","","","","","","","","","","","","","1. Juledag","","",{"$f":"IF(W8=\"\",\"\",HelligdagsNavn(W8,0,0))","v":""},{"$f":"IF(X8=\"\",\"\",HelligdagsNavn(X8,0,0))","v":""},"Nytårsdag","","","",{"$f":"HelligdagsNavn(AC8,0,0)","v":""},{"$f":"HelligdagsNavn(AD8,0,0)","v":""},{"$f":"HelligdagsNavn(AE8,0,0)","v":""},""]
["Medarbejder"]
["Line",null,null,null,null,null,null,null,null,null,"F","FF",null,null,null,null,null,null,null,null,"FF","FF","FF",null,null,null,null,null,"FF","FF","FF",null,{"$f":"COUNTIF(B11:X11,\"F\")","v":1},{"$f":"COUNTIF(B11:X11,\"FF\")","v":4},{"$f":"COUNTIF(B11:X11,\"S\")","v":0},{"$f":"COUNTIF(B11:X11,\"Ah.\")","v":0},{"$f":"COUNTIF(B11:X11,\"Sen dag\")","v":0},{"$f":"COUNTIF(B11:X11,\"BS\")","v":0},{"$f":"COUNTIF(B11:X11,\"Afsp.\")","v":0},{"$f":"COUNTIF(B11:X11,\"Fri\")","v":0}]
["Claus",null,null,null,null,null,"S",null,null,null,null,null,null,null,null,null,null,null,null,null,null,null,null,null,null,null,null,null,null,null,null,null,{"$f":"COUNTIF(B12:X12,\"F\")","v":0},{"$f":"COUNTIF(B12:X12,\"FF\")","v":0},{"$f":"COUNTIF(B12:X12,\"S\")","v":1},{"$f":"COUNTIF(B12:X12,\"Ah.\")","v":0},{"$f":"COUNTIF(B12:X12,\"Sen dag\")","v":0},{"$f":"COUNTIF(B12:X12,\"BS\")","v":0},{"$f":"COUNTIF(B12:X12,\"Afsp.\")","v":0},{"$f":"COUNTIF(B12:X12,\"Fri\")","v":0}]
["Palle",null,null,null,null,null,null,null,null,null,null,null,null,null,null,null,null,null,null,null,null,null,null,null,null,null,null,null,null,null,null,null,{"$f":"COUNTIF(B13:X13,\"F\")","v":0},0,0,0,0,0,0,0]
["Michael",null,null,null,null,null,"S",null,null,null,null,null,null,null,null,"F","F","F",null,null,"F","F","F",null,"F","F",null,null,"F","F","F",null,6,0,1,0,0,0,0,0]
["Morten",null,null,null,null,null,null,null,null,null,"BS",null,null,null,null,null,null,null,null,null,"F","F","FF",null,null,null,null,null,"F","F","FF",null,2,1,0,0,0,1,0,0]
["Oliver",null,null,null,null,null,null,null,null,null,null,null,null,null,null,null,null,null,null,null,null,null,null,null,null,null,null,null,null,null,null,null,0,0,0,0,0,0,0,0]
["Povl",null,null,null,null,null,null,null,null,null,null,null,null,null,null,null,null,null,null,null,null,null,null,null,null,null,null,null,null,null,null,null,0,0,0,0,0,0,0,0]
["Klaus",null,null,null,null,null,null,"Afsp.",null,null,null,null,null,null,null,null,null,null,null,null,null,null,null,null,null,null,null,null,null,null,null,null,0,0,0,0,0,0,1,0]
["Ken",null,null,null,null,null,null,"Sen dag",null,null,null,null,null,null,null,"F","F","F",null,null,"F","F","F",null,"F","F",null,null,"F","F","F",null,6,0,0,0,1,0,0,0]
["Jakob",null,null,null,null,null,null,null,null,null,null,null,null,null,null,null,null,null,null,null,"F","F","F",null,null,null,null,null,"F","F","F",null,3,0,0,0,0,0,0,0]
["Heine",null,null,null,null,null,null,null,null,null,null,null,null,null,null,null,null,null,null,null,null,null,null,null,null,null,null,null,null,null,null,null,0,0,0,0,0,0,0,0]
["Dorrit",null,null,null,null,null,null,null,null,null,null,null,null,null,null,null,null,null,null,null,null,"F","F",null,null,null,null,null,null,"F","F",null,2,0,0,0,0,0,0,0]
["Louise",null,null,null,null,null,null,null,null,null,null,null,null,null,null,null,null,null,null,null,null,null,null,null,null,null,null,null,null,null,null,null,0,0,0,0,0,0,0,0]
["Mark",null,null,null,null,null,null,null,null,null,null,null,null,null,null,"F","F","F",null,null,null,"F","F",null,"F","F",null,null,null,"F","F",null,5,0,0,0,0,0,0,0]
["Karsten",null,null,null,null,null,null,"F",null,null,null,null,null,null,null,null,null,null,null,null,null,null,null,null,null,null,null,null,null,null,null,null,1,0,0,0,0,0,0,0]
["Søren Jensen",null,null,null,null,null,null,null,null,null,null,null,null,null,null,"F","F","F",null,null,"F","F","F",null,"F","F",null,null,"F","F","F",null,6,0,0,0,0,0,0,0]

{"sheet":"Januar 2016","index":20,"n_rows":30,"n_cols":24,"rows_kept":30,"cut":false,"hidden":false,"merged":[]}
["År",2016]
["Måned","Jan"]
[]
["Uge",53,1,null,null,null,null,2,null,null,null,null,3,null,null,null,null,4,null,null,null,null,"Feriedage denne måned","Feriedage ferieåret 1/5-15-1/5-16"]
["Dag","Fredag","Mandag ","Tirsdag","Onsdag","Torsdag","Fredag","Mandag","Tirsdag","Onsdag","Torsdag","Fredag","Mandag","Tirsdag","Onsdag","Torsdag","Fredag","Mandag","Tirsdag","Onsdag","Torsdag","Fredag"]
["Dato",1,4,5,6,7,8,11,12,13,14,15,18,19,20,21,22,25,26,27,28,29]
["Medarbejder"]
[]
["Line",null,null,null,null,null,null,null,null,null,null,null,null,null,null,null,null,null,"Juleaften","1. juledag"]
["Claus",null,null,null,null,null,null,null,null,null,null,null,null,null,null,null,null,null,"Juleaften","1. juledag"]
["Palle",null,null,null,null,null,null,null,null,null,null,null,null,null,null,null,null,null,"Juleaften","1. juledag"]
["Michael",null,null,null,null,null,null,null,null,null,null,null,null,null,null,null,null,null,"Juleaften","1. juledag"]
["Morten",null,null,null,null,null,null,null,null,null,null,null,null,null,null,null,null,null,"Juleaften","1. juledag"]
["Oliver",null,null,null,null,null,null,null,null,null,null,null,null,null,null,null,null,null,"Juleaften","1. juledag"]
["Povl",null,null,null,null,null,null,null,null,null,null,null,null,null,null,null,null,null,"Juleaften","1. juledag"]
["Klaus",null,null,null,null,null,null,null,null,null,null,null,null,null,null,null,null,null,"Juleaften","1. juledag"]
["Ken",null,null,null,null,null,null,null,null,null,null,null,null,null,null,null,null,null,"Juleaften","1. juledag"]
["Jakob",null,null,null,null,null,null,null,null,null,null,null,null,null,null,null,null,null,"Juleaften","1. juledag"]
["Heine",null,null,null,null,null,null,null,null,null,null,null,null,null,null,null,null,null,"Juleaften","1. juledag"]
["Dorrit",null,null,null,null,null,null,null,null,null,null,null,null,null,null,null,null,null,"Juleaften","1. juledag"]
["Christian",null,null,null,null,null,null,null,null,null,null,null,null,null,null,null,null,null,"Juleaften","1. juledag"]
["Louise",null,null,null,null,null,null,null,null,null,null,null,null,null,null,null,null,null,"Juleaften","1. juledag"]
["Mark",null,null,null,null,null,null,null,null,null,null,null,null,null,null,null,null,null,"Juleaften","1. juledag"]
["Søren",null,null,null,null,null,null,null,null,null,null,null,null,null,null,null,null,null,"Juleaften","1. juledag"]
[]
["Ferie","F"]
["Feriefridag","FF"]
["Helligdag"]
["Sygdom","S"]
["Arb. hjemme"]

{"sheet":"Februar 2016","index":21,"n_rows":30,"n_cols":24,"rows_kept":30,"cut":false,"hidden":false,"merged":[]}
["År",2016]
["Måned","Februar"]
[]
["Uge",53,1,null,null,null,null,2,null,null,null,null,3,null,null,null,null,4,null,null,null,null,"Feriedage denne måned","Feriedage ferieåret 1/5-15-1/5-16"]
["Dag","Fredag","Mandag ","Tirsdag","Onsdag","Torsdag","Fredag","Mandag","Tirsdag","Onsdag","Torsdag","Fredag","Mandag","Tirsdag","Onsdag","Torsdag","Fredag","Mandag","Tirsdag","Onsdag","Torsdag","Fredag"]
["Dato",1,4,5,6,7,8,11,12,13,14,15,18,19,20,21,22,25,26,27,28,29]
["Medarbejder"]
[]
["Line",null,null,null,null,null,null,null,null,null,null,null,null,null,null,null,null,null,"Juleaften","1. juledag"]
["Claus",null,null,null,null,null,null,null,null,null,null,null,null,null,null,null,null,null,"Juleaften","1. juledag"]
["Palle",null,null,null,null,null,null,null,null,null,null,null,null,null,null,null,null,null,"Juleaften","1. juledag"]
["Michael",null,null,null,null,null,null,null,null,null,null,null,null,null,null,null,null,null,"Juleaften","1. juledag"]
["Morten",null,null,null,null,null,null,null,null,null,null,null,null,null,null,null,null,null,"Juleaften","1. juledag"]
["Oliver",null,null,null,null,null,null,null,null,null,null,null,null,null,null,null,null,null,"Juleaften","1. juledag"]
["Povl",null,null,null,null,null,null,null,null,null,null,null,null,null,null,null,null,null,"Juleaften","1. juledag"]
["Klaus",null,null,null,null,null,null,null,null,null,null,null,null,null,null,null,null,null,"Juleaften","1. juledag"]
["Ken",null,null,null,null,null,null,null,null,null,null,null,null,null,null,null,null,null,"Juleaften","1. juledag"]
["Jakob",null,null,null,null,null,null,null,null,null,null,null,null,null,null,null,null,null,"Juleaften","1. juledag"]
["Heine",null,null,null,null,null,null,null,null,null,null,null,null,null,null,null,null,null,"Juleaften","1. juledag"]
["Dorrit",null,null,null,null,null,null,null,null,null,null,null,null,null,null,null,null,null,"Juleaften","1. juledag"]
["Christian",null,null,null,null,null,null,null,null,null,null,null,null,null,null,null,null,null,"Juleaften","1. juledag"]
["Louise",null,null,null,null,null,null,null,null,null,null,null,null,null,null,null,null,null,"Juleaften","1. juledag"]
["Mark",null,null,null,null,null,null,null,null,null,null,null,null,null,null,null,null,null,"Juleaften","1. juledag"]
["Søren",null,null,null,null,null,null,null,null,null,null,null,null,null,null,null,null,null,"Juleaften","1. juledag"]
[]
["Ferie","F"]
["Feriefridag","FF"]
["Helligdag"]
["Sygdom","S"]
["Arb. hjemme"]

{"sheet":"Marts 2016","index":22,"n_rows":30,"n_cols":24,"rows_kept":30,"cut":false,"hidden":false,"merged":[]}
["År",2016]
["Måned","Marts"]
[]
["Uge",53,1,null,null,null,null,2,null,null,null,null,3,null,null,null,null,4,null,null,null,null,"Feriedage denne måned","Feriedage ferieåret 1/5-15-1/5-16"]
["Dag","Fredag","Mandag ","Tirsdag","Onsdag","Torsdag","Fredag","Mandag","Tirsdag","Onsdag","Torsdag","Fredag","Mandag","Tirsdag","Onsdag","Torsdag","Fredag","Mandag","Tirsdag","Onsdag","Torsdag","Fredag"]
["Dato",1,4,5,6,7,8,11,12,13,14,15,18,19,20,21,22,25,26,27,28,29]
["Medarbejder"]
[]
["Line",null,null,null,null,null,null,null,null,null,null,null,null,null,null,null,null,null,"Juleaften","1. juledag"]
["Claus",null,null,null,null,null,null,null,null,null,null,null,null,null,null,null,null,null,"Juleaften","1. juledag"]
["Palle",null,null,null,null,null,null,null,null,null,null,null,null,null,null,null,null,null,"Juleaften","1. juledag"]
["Michael",null,null,null,null,null,null,null,null,null,null,null,null,null,null,null,null,null,"Juleaften","1. juledag"]
["Morten",null,null,null,null,null,null,null,null,null,null,null,null,null,null,null,null,null,"Juleaften","1. juledag"]
["Oliver",null,null,null,null,null,null,null,null,null,null,null,null,null,null,null,null,null,"Juleaften","1. juledag"]
["Povl",null,null,null,null,null,null,null,null,null,null,null,null,null,null,null,null,null,"Juleaften","1. juledag"]
["Klaus",null,null,null,null,null,null,null,null,null,null,null,null,null,null,null,null,null,"Juleaften","1. juledag"]
["Ken",null,null,null,null,null,null,null,null,null,null,null,null,null,null,null,null,null,"Juleaften","1. juledag"]
["Jakob",null,null,null,null,null,null,null,null,null,null,null,null,null,null,null,null,null,"Juleaften","1. juledag"]
["Heine",null,null,null,null,null,null,null,null,null,null,null,null,null,null,null,null,null,"Juleaften","1. juledag"]
["Dorrit",null,null,null,null,null,null,null,null,null,null,null,null,null,null,null,null,null,"Juleaften","1. juledag"]
["Christian",null,null,null,null,null,null,null,null,null,null,null,null,null,null,null,null,null,"Juleaften","1. juledag"]
["Louise",null,null,null,null,null,null,null,null,null,null,null,null,null,null,null,null,null,"Juleaften","1. juledag"]
["Mark",null,null,null,null,null,null,null,null,null,null,null,null,null,null,null,null,null,"Juleaften","1. juledag"]
["Søren",null,null,null,null,null,null,null,null,null,null,null,null,null,null,null,null,null,"Juleaften","1. juledag"]
[]
["Ferie","F"]
["Feriefridag","FF"]
["Helligdag"]
["Sygdom","S"]
["Arb. hjemme"]

{"sheet":"April 2016","index":23,"n_rows":30,"n_cols":24,"rows_kept":30,"cut":false,"hidden":false,"merged":[]}
["År",2016]
["Måned","April"]
[]
["Uge",53,1,null,null,null,null,2,null,null,null,null,3,null,null,null,null,4,null,null,null,null,"Feriedage denne måned","Feriedage ferieåret 1/5-15-1/5-16"]
["Dag","Fredag","Mandag ","Tirsdag","Onsdag","Torsdag","Fredag","Mandag","Tirsdag","Onsdag","Torsdag","Fredag","Mandag","Tirsdag","Onsdag","Torsdag","Fredag","Mandag","Tirsdag","Onsdag","Torsdag","Fredag"]
["Dato",1,4,5,6,7,8,11,12,13,14,15,18,19,20,21,22,25,26,27,28,29]
["Medarbejder"]
[]
["Line",null,null,null,null,null,null,null,null,null,null,null,null,null,null,null,null,null,"Juleaften","1. juledag"]
["Claus",null,null,null,null,null,null,null,null,null,null,null,null,null,null,null,null,null,"Juleaften","1. juledag"]
["Palle",null,null,null,null,null,null,null,null,null,null,null,null,null,null,null,null,null,"Juleaften","1. juledag"]
["Michael",null,null,null,null,null,null,null,null,null,null,null,null,null,null,null,null,null,"Juleaften","1. juledag"]
["Morten",null,null,null,null,null,null,null,null,null,null,null,null,null,null,null,null,null,"Juleaften","1. juledag"]
["Oliver",null,null,null,null,null,null,null,null,null,null,null,null,null,null,null,null,null,"Juleaften","1. juledag"]
["Povl",null,null,null,null,null,null,null,null,null,null,null,null,null,null,null,null,null,"Juleaften","1. juledag"]
["Klaus",null,null,null,null,null,null,null,null,null,null,null,null,null,null,null,null,null,"Juleaften","1. juledag"]
["Ken",null,null,null,null,null,null,null,null,null,null,null,null,null,null,null,null,null,"Juleaften","1. juledag"]
["Jakob",null,null,null,null,null,null,null,null,null,null,null,null,null,null,null,null,null,"Juleaften","1. juledag"]
["Heine",null,null,null,null,null,null,null,null,null,null,null,null,null,null,null,null,null,"Juleaften","1. juledag"]
["Dorrit",null,null,null,null,null,null,null,null,null,null,null,null,null,null,null,null,null,"Juleaften","1. juledag"]
["Christian",null,null,null,null,null,null,null,null,null,null,null,null,null,null,null,null,null,"Juleaften","1. juledag"]
["Louise",null,null,null,null,null,null,null,null,null,null,null,null,null,null,null,null,null,"Juleaften","1. juledag"]
["Mark",null,null,null,null,null,null,null,null,null,null,null,null,null,null,null,null,null,"Juleaften","1. juledag"]
["Søren",null,null,null,null,null,null,null,null,null,null,null,null,null,null,null,null,null,"Juleaften","1. juledag"]
[]
["Ferie","F"]
["Feriefridag","FF"]
["Helligdag"]
["Sygdom","S"]
["Arb. hjemme"]

{"sheet":"Maj 2016","index":24,"n_rows":30,"n_cols":24,"rows_kept":30,"cut":false,"hidden":false,"merged":[]}
["År",2016]
["Måned","Maj"]
[]
["Uge",53,1,null,null,null,null,2,null,null,null,null,3,null,null,null,null,4,null,null,null,null,"Feriedage denne måned","Feriedage ferieåret 1/5-15-1/5-16"]
["Dag","Fredag","Mandag ","Tirsdag","Onsdag","Torsdag","Fredag","Mandag","Tirsdag","Onsdag","Torsdag","Fredag","Mandag","Tirsdag","Onsdag","Torsdag","Fredag","Mandag","Tirsdag","Onsdag","Torsdag","Fredag"]
["Dato",1,4,5,6,7,8,11,12,13,14,15,18,19,20,21,22,25,26,27,28,29]
["Medarbejder"]
[]
["Line",null,null,null,null,null,null,null,null,null,null,null,null,null,null,null,null,null,"Juleaften","1. juledag"]
["Claus",null,null,null,null,null,null,null,null,null,null,null,null,null,null,null,null,null,"Juleaften","1. juledag"]
["Palle",null,null,null,null,null,null,null,null,null,null,null,null,null,null,null,null,null,"Juleaften","1. juledag"]
["Michael",null,null,null,null,null,null,null,null,null,null,null,null,null,null,null,null,null,"Juleaften","1. juledag"]
["Morten",null,null,null,null,null,null,null,null,null,null,null,null,null,null,null,null,null,"Juleaften","1. juledag"]
["Oliver",null,null,null,null,null,null,null,null,null,null,null,null,null,null,null,null,null,"Juleaften","1. juledag"]
["Povl",null,null,null,null,null,null,null,null,null,null,null,null,null,null,null,null,null,"Juleaften","1. juledag"]
["Klaus",null,null,null,null,null,null,null,null,null,null,null,null,null,null,null,null,null,"Juleaften","1. juledag"]
["Ken",null,null,null,null,null,null,null,null,null,null,null,null,null,null,null,null,null,"Juleaften","1. juledag"]
["Jakob",null,null,null,null,null,null,null,null,null,null,null,null,null,null,null,null,null,"Juleaften","1. juledag"]
["Heine",null,null,null,null,null,null,null,null,null,null,null,null,null,null,null,null,null,"Juleaften","1. juledag"]
["Dorrit",null,null,null,null,null,null,null,null,null,null,null,null,null,null,null,null,null,"Juleaften","1. juledag"]
["Christian",null,null,null,null,null,null,null,null,null,null,null,null,null,null,null,null,null,"Juleaften","1. juledag"]
["Louise",null,null,null,null,null,null,null,null,null,null,null,null,null,null,null,null,null,"Juleaften","1. juledag"]
["Mark",null,null,null,null,null,null,null,null,null,null,null,null,null,null,null,null,null,"Juleaften","1. juledag"]
["Søren",null,null,null,null,null,null,null,null,null,null,null,null,null,null,null,null,null,"Juleaften","1. juledag"]
[]
["Ferie","F"]
["Feriefridag","FF"]
["Helligdag"]
["Sygdom","S"]
["Arb. hjemme"]

{"sheet":"Juni 2016","index":25,"n_rows":30,"n_cols":24,"rows_kept":30,"cut":false,"hidden":false,"merged":[]}
["År",2016]
["Måned","Juni"]
[]
["Uge",53,1,null,null,null,null,2,null,null,null,null,3,null,null,null,null,4,null,null,null,null,"Feriedage denne måned","Feriedage ferieåret 1/5-15-1/5-16"]
["Dag","Fredag","Mandag ","Tirsdag","Onsdag","Torsdag","Fredag","Mandag","Tirsdag","Onsdag","Torsdag","Fredag","Mandag","Tirsdag","Onsdag","Torsdag","Fredag","Mandag","Tirsdag","Onsdag","Torsdag","Fredag"]
["Dato",1,4,5,6,7,8,11,12,13,14,15,18,19,20,21,22,25,26,27,28,29]
["Medarbejder"]
[]
["Line",null,null,null,null,null,null,null,null,null,null,null,null,null,null,null,null,null,"Juleaften","1. juledag"]
["Claus",null,null,null,null,null,null,null,null,null,null,null,null,null,null,null,null,null,"Juleaften","1. juledag"]
["Palle",null,null,null,null,null,null,null,null,null,null,null,null,null,null,null,null,null,"Juleaften","1. juledag"]
["Michael",null,null,null,null,null,null,null,null,null,null,null,null,null,null,null,null,null,"Juleaften","1. juledag"]
["Morten",null,null,null,null,null,null,null,null,null,null,null,null,null,null,null,null,null,"Juleaften","1. juledag"]
["Oliver",null,null,null,null,null,null,null,null,null,null,null,null,null,null,null,null,null,"Juleaften","1. juledag"]
["Povl",null,null,null,null,null,null,null,null,null,null,null,null,null,null,null,null,null,"Juleaften","1. juledag"]
["Klaus",null,null,null,null,null,null,null,null,null,null,null,null,null,null,null,null,null,"Juleaften","1. juledag"]
["Ken",null,null,null,null,null,null,null,null,null,null,null,null,null,null,null,null,null,"Juleaften","1. juledag"]
["Jakob",null,null,null,null,null,null,null,null,null,null,null,null,null,null,null,null,null,"Juleaften","1. juledag"]
["Heine",null,null,null,null,null,null,null,null,null,null,null,null,null,null,null,null,null,"Juleaften","1. juledag"]
["Dorrit",null,null,null,null,null,null,null,null,null,null,null,null,null,null,null,null,null,"Juleaften","1. juledag"]
["Christian",null,null,null,null,null,null,null,null,null,null,null,null,null,null,null,null,null,"Juleaften","1. juledag"]
["Louise",null,null,null,null,null,null,null,null,null,null,null,null,null,null,null,null,null,"Juleaften","1. juledag"]
["Mark",null,null,null,null,null,null,null,null,null,null,null,null,null,null,null,null,null,"Juleaften","1. juledag"]
["Søren",null,null,null,null,null,null,null,null,null,null,null,null,null,null,null,null,null,"Juleaften","1. juledag"]
[]
["Ferie","F"]
["Feriefridag","FF"]
["Helligdag"]
["Sygdom","S"]
["Arb. hjemme"]

{"sheet":"Juli 2016","index":26,"n_rows":30,"n_cols":24,"rows_kept":30,"cut":false,"hidden":false,"merged":[]}
["År",2016]
["Måned","Juli"]
[]
["Uge",53,1,null,null,null,null,2,null,null,null,null,3,null,null,null,null,4,null,null,null,null,"Feriedage denne måned","Feriedage ferieåret 1/5-15-1/5-16"]
["Dag","Fredag","Mandag ","Tirsdag","Onsdag","Torsdag","Fredag","Mandag","Tirsdag","Onsdag","Torsdag","Fredag","Mandag","Tirsdag","Onsdag","Torsdag","Fredag","Mandag","Tirsdag","Onsdag","Torsdag","Fredag"]
["Dato",1,4,5,6,7,8,11,12,13,14,15,18,19,20,21,22,25,26,27,28,29]
["Medarbejder"]
[]
["Line",null,null,null,null,null,null,null,null,null,null,null,null,null,null,null,null,null,"Juleaften","1. juledag"]
["Claus",null,null,null,null,null,null,null,null,null,null,null,null,null,null,null,null,null,"Juleaften","1. juledag"]
["Palle",null,null,null,null,null,null,null,null,null,null,null,null,null,null,null,null,null,"Juleaften","1. juledag"]
["Michael",null,null,null,null,null,null,null,null,null,null,null,null,null,null,null,null,null,"Juleaften","1. juledag"]
["Morten",null,null,null,null,null,null,null,null,null,null,null,null,null,null,null,null,null,"Juleaften","1. juledag"]
["Oliver",null,null,null,null,null,null,null,null,null,null,null,null,null,null,null,null,null,"Juleaften","1. juledag"]
["Povl",null,null,null,null,null,null,null,null,null,null,null,null,null,null,null,null,null,"Juleaften","1. juledag"]
["Klaus",null,null,null,null,null,null,null,null,null,null,null,null,null,null,null,null,null,"Juleaften","1. juledag"]
["Ken",null,null,null,null,null,null,null,null,null,null,null,null,null,null,null,null,null,"Juleaften","1. juledag"]
["Jakob",null,null,null,null,null,null,null,null,null,null,null,null,null,null,null,null,null,"Juleaften","1. juledag"]
["Heine",null,null,null,null,null,null,null,null,null,null,null,null,null,null,null,null,null,"Juleaften","1. juledag"]
["Dorrit",null,null,null,null,null,null,null,null,null,null,null,null,null,null,null,null,null,"Juleaften","1. juledag"]
["Christian",null,null,null,null,null,null,null,null,null,null,null,null,null,null,null,null,null,"Juleaften","1. juledag"]
["Louise",null,null,null,null,null,null,null,null,null,null,null,null,null,null,null,null,null,"Juleaften","1. juledag"]
["Mark",null,null,null,null,null,null,null,null,null,null,null,null,null,null,null,null,null,"Juleaften","1. juledag"]
["Søren",null,null,null,null,null,null,null,null,null,null,null,null,null,null,null,null,null,"Juleaften","1. juledag"]
[]
["Ferie","F"]
["Feriefridag","FF"]
["Helligdag"]
["Sygdom","S"]
["Arb. hjemme"]

{"sheet":"August 2016","index":27,"n_rows":30,"n_cols":24,"rows_kept":30,"cut":false,"hidden":false,"merged":[]}
["År",2016]
["Måned","August"]
[]
["Uge",53,1,null,null,null,null,2,null,null,null,null,3,null,null,null,null,4,null,null,null,null,"Feriedage denne måned","Feriedage ferieåret 1/5-15-1/5-16"]
["Dag","Fredag","Mandag ","Tirsdag","Onsdag","Torsdag","Fredag","Mandag","Tirsdag","Onsdag","Torsdag","Fredag","Mandag","Tirsdag","Onsdag","Torsdag","Fredag","Mandag","Tirsdag","Onsdag","Torsdag","Fredag"]
["Dato",1,4,5,6,7,8,11,12,13,14,15,18,19,20,21,22,25,26,27,28,29]
["Medarbejder"]
[]
["Line",null,null,null,null,null,null,null,null,null,null,null,null,null,null,null,null,null,"Juleaften","1. juledag"]
["Claus",null,null,null,null,null,null,null,null,null,null,null,null,null,null,null,null,null,"Juleaften","1. juledag"]
["Palle",null,null,null,null,null,null,null,null,null,null,null,null,null,null,null,null,null,"Juleaften","1. juledag"]
["Michael",null,null,null,null,null,null,null,null,null,null,null,null,null,null,null,null,null,"Juleaften","1. juledag"]
["Morten",null,null,null,null,null,null,null,null,null,null,null,null,null,null,null,null,null,"Juleaften","1. juledag"]
["Oliver",null,null,null,null,null,null,null,null,null,null,null,null,null,null,null,null,null,"Juleaften","1. juledag"]
["Povl",null,null,null,null,null,null,null,null,null,null,null,null,null,null,null,null,null,"Juleaften","1. juledag"]
["Klaus",null,null,null,null,null,null,null,null,null,null,null,null,null,null,null,null,null,"Juleaften","1. juledag"]
["Ken",null,null,null,null,null,null,null,null,null,null,null,null,null,null,null,null,null,"Juleaften","1. juledag"]
["Jakob",null,null,null,null,null,null,null,null,null,null,null,null,null,null,null,null,null,"Juleaften","1. juledag"]
["Heine",null,null,null,null,null,null,null,null,null,null,null,null,null,null,null,null,null,"Juleaften","1. juledag"]
["Dorrit",null,null,null,null,null,null,null,null,null,null,null,null,null,null,null,null,null,"Juleaften","1. juledag"]
["Christian",null,null,null,null,null,null,null,null,null,null,null,null,null,null,null,null,null,"Juleaften","1. juledag"]
["Louise",null,null,null,null,null,null,null,null,null,null,null,null,null,null,null,null,null,"Juleaften","1. juledag"]
["Mark",null,null,null,null,null,null,null,null,null,null,null,null,null,null,null,null,null,"Juleaften","1. juledag"]
["Søren",null,null,null,null,null,null,null,null,null,null,null,null,null,null,null,null,null,"Juleaften","1. juledag"]
[]
["Ferie","F"]
["Feriefridag","FF"]
["Helligdag"]
["Sygdom","S"]
["Arb. hjemme"]

{"sheet":"Ark8","index":28,"n_rows":30,"n_cols":24,"rows_kept":30,"cut":false,"hidden":false,"merged":[]}
["År",2016]
["Måned"]
[]
["Uge",53,1,null,null,null,null,2,null,null,null,null,3,null,null,null,null,4,null,null,null,null,"Feriedage denne måned","Feriedage ferieåret 1/5-15-1/5-16"]
["Dag","Fredag","Mandag ","Tirsdag","Onsdag","Torsdag","Fredag","Mandag","Tirsdag","Onsdag","Torsdag","Fredag","Mandag","Tirsdag","Onsdag","Torsdag","Fredag","Mandag","Tirsdag","Onsdag","Torsdag","Fredag"]
["Dato",1,4,5,6,7,8,11,12,13,14,15,18,19,20,21,22,25,26,27,28,29]
["Medarbejder"]
[]
["Line",null,null,null,null,null,null,null,null,null,null,null,null,null,null,null,null,null,"Juleaften","1. juledag"]
["Claus",null,null,null,null,null,null,null,null,null,null,null,null,null,null,null,null,null,"Juleaften","1. juledag"]
["Palle",null,null,null,null,null,null,null,null,null,null,null,null,null,null,null,null,null,"Juleaften","1. juledag"]
["Michael",null,null,null,null,null,null,null,null,null,null,null,null,null,null,null,null,null,"Juleaften","1. juledag"]
["Morten",null,null,null,null,null,null,null,null,null,null,null,null,null,null,null,null,null,"Juleaften","1. juledag"]
["Oliver",null,null,null,null,null,null,null,null,null,null,null,null,null,null,null,null,null,"Juleaften","1. juledag"]
["Povl",null,null,null,null,null,null,null,null,null,null,null,null,null,null,null,null,null,"Juleaften","1. juledag"]
["Klaus",null,null,null,null,null,null,null,null,null,null,null,null,null,null,null,null,null,"Juleaften","1. juledag"]
["Ken",null,null,null,null,null,null,null,null,null,null,null,null,null,null,null,null,null,"Juleaften","1. juledag"]
["Jakob",null,null,null,null,null,null,null,null,null,null,null,null,null,null,null,null,null,"Juleaften","1. juledag"]
["Heine",null,null,null,null,null,null,null,null,null,null,null,null,null,null,null,null,null,"Juleaften","1. juledag"]
["Dorrit",null,null,null,null,null,null,null,null,null,null,null,null,null,null,null,null,null,"Juleaften","1. juledag"]
["Christian",null,null,null,null,null,null,null,null,null,null,null,null,null,null,null,null,null,"Juleaften","1. juledag"]
["Louise",null,null,null,null,null,null,null,null,null,null,null,null,null,null,null,null,null,"Juleaften","1. juledag"]
["Mark",null,null,null,null,null,null,null,null,null,null,null,null,null,null,null,null,null,"Juleaften","1. juledag"]
["Søren",null,null,null,null,null,null,null,null,null,null,null,null,null,null,null,null,null,"Juleaften","1. juledag"]
[]
["Ferie","F"]
["Feriefridag","FF"]
["Helligdag"]
["Sygdom","S"]
["Arb. hjemme"]

{"sheet":"Setup","index":29,"n_rows":12,"n_cols":3,"rows_kept":12,"cut":false,"hidden":false,"merged":[]}
["Ferie","F","Jan"]
["Feriefridag","FF","Feb"]
["Helligdag",null,"Mar"]
["Sygdom","S","Apr"]
["Arb. hjemme","Ah.","Maj"]
["Senior dag","Sen dag","Jun"]
["Barn 1 sygdag","BS","Jul"]
["Afspadsering","Afsp.","Aug"]
["Fri","Fri","Sep"]
[null,null,"Okt"]
[null,null,"Nov"]
[null,null,"Dec"]